bitfinex-derivatives/quotes_BTCF0:USTF0_20241122
["timestamp","ask_amount","ask_price","bid_price","bid_amount"]
[1732254261976,0.3608,98841.0,98831.0,0.050538]
[1732254262181,0.49506924,98841.0,98840.0,0.050573]
[1732254262473,0.411333,98841.0,98840.0,0.050573]
[1732254265975,0.411333,98841.0,98840.0,0.06797781]
[1732254266170,0.411333,98841.0,98840.0,0.050573]
[1732254267176,0.3608,98841.0,98840.0,0.050573]
[1732254268177,0.411333,98841.0,98840.0,0.050573]
[1732254269470,0.411333,98841.0,98840.0,0.06797781]
[1732254269894,0.050533,98841.0,98840.0,0.06797781]
[1732254270181,0.050531,98845.0,98844.0,0.05053]
[1732254270373,0.050531,98845.0,98844.0,0.06793481]
[1732254270681,0.050531,98845.0,98844.0,0.06797481]
[1732254273680,0.050531,98845.0,98844.0,0.01744481]
[1732254276272,0.050531,98845.0,98844.0,4e-05]
[1732254282679,0.050531,98845.0,98844.0,0.01744481]
[1732254283385,0.354051,98845.0,98831.0,0.0024]
[1732254283579,0.772137,98832.0,98825.0,0.0024]
[1732254283781,0.050542,98823.0,98822.0,0.0319]
[1732254283981,0.411342,98823.0,98822.0,0.0319]
[1732254284782,0.411342,98823.0,98809.0,0.0024]
[1732254284783,0.050549,98813.0,98812.0,0.050547]
[1732254284990,0.050549,98810.0,98809.0,0.050549]
[1732254285298,0.050549,98810.0,98809.0,0.0716975]
[1732254285779,0.36084,98813.0,98809.0,0.0211485]
[1732254286092,0.36084,98813.0,98812.0,4e-05]
[1732254287189,0.36084,98813.0,98812.0,0.050588]
[1732254289880,4e-05,98813.0,98812.0,0.050588]
[1732254290083,0.0024,98822.0,98821.0,0.050543]
[1732254290284,0.0024,98828.0,98827.0,0.05054]
[1732254290487,0.060637,98833.0,98832.0,0.050537]
[1732254290488,0.050537,98833.0,98832.0,0.050537]
[1732254290989,0.411337,98833.0,98832.0,0.050577]
[1732254291789,0.3608,98833.0,98832.0,0.050577]
[1732254293684,0.3608,98833.0,98832.0,0.06814547]
[1732254296686,0.3608,98836.0,98832.0,0.06814547]
[1732254296888,0.3608,98836.0,98833.0,0.01756847]
[1732254297085,0.3608,98836.0,98835.0,0.050576]
[1732254297387,0.3608,98836.0,98835.0,0.06814447]
[1732254299594,0.00138843,98836.0,98835.0,0.06814447]
[1732254299798,0.00138843,98836.0,98835.0,0.050576]
[1732254300896,0.41272343,98836.0,98835.0,0.050576]
[1732254301495,0.05192343,98836.0,98835.0,0.050576]
[1732254301886,0.00138843,98836.0,98835.0,0.050576]
[1732254303898,0.00138843,98836.0,98835.0,0.06814447]
[1732254304399,0.36218843,98836.0,98835.0,0.06814447]
[1732254305194,0.3608,98836.0,98835.0,0.06814447]
[1732254305399,0.36272725,98836.0,98835.0,0.06814447]
[1732254305799,0.41326225,98836.0,98835.0,0.06814447]
[1732254306190,0.0024,98844.0,98835.0,0.01760847]
[1732254306393,0.050533,98841.0,98840.0,0.050533]
[1732254306591,0.050533,98841.0,98840.0,0.06810147]
[1732254307296,0.050533,98841.0,98840.0,0.01756847]
[1732254309006,0.050533,98841.0,98839.0,0.01756847]
[1732254309198,0.02045711,98846.0,98828.0,0.02142816]
[1732254309199,0.02045711,98846.0,98840.0,0.02404858]
[1732254309401,0.02045711,98846.0,98828.0,0.02142816]
[1732254309402,0.3608,98847.0,98841.0,0.02404858]
[1732254309707,0.050532,98843.0,98842.0,0.00648011]
[1732254310002,0.0912,98846.0,98842.0,0.02404858]
[1732254310203,0.0912,98846.0,98843.0,0.01756847]
[1732254310406,0.050531,98845.0,98844.0,0.01756847]
[1732254310799,0.050534,98838.0,98837.0,0.050535]
[1732254311007,0.411334,98838.0,98837.0,0.050535]
[1732254312108,0.3608,98838.0,98837.0,0.050535]
[1732254312800,0.411334,98838.0,98837.0,0.050535]
[1732254312992,0.050537,98833.0,98832.0,0.050537]
[1732254313195,0.050537,98833.0,98832.0,0.05704958]
[1732254313405,0.050577,98833.0,98832.0,0.05704958]
[1732254314709,0.050577,98833.0,98822.0,0.0627]
[1732254314710,0.3948,98833.0,98822.0,0.050542]
[1732254314924,0.411342,98823.0,98822.0,0.050542]
[1732254315203,0.411382,98823.0,98822.0,0.050542]
[1732254316307,0.35454351,98823.0,98822.0,0.050542]
[1732254316512,0.37524513,98823.0,98822.0,0.050542]
[1732254316814,0.42578713,98823.0,98822.0,0.050542]
[1732254317013,0.40508551,98823.0,98822.0,0.050542]
[1732254317312,0.35454351,98823.0,98822.0,0.050542]
[1732254318506,0.40508551,98823.0,98822.0,0.050542]
[1732254319214,0.37350863,98823.0,98822.0,0.050542]
[1732254320017,0.31667024,98823.0,98822.0,0.050542]
[1732254322914,0.26612824,98823.0,98816.0,0.02064092]
[1732254323112,0.050545,98818.0,98817.0,0.050545]
[1732254323499,0.26608824,98823.0,98810.0,0.05357345]
[1732254323500,0.050547,98813.0,98810.0,0.05357345]
[1732254323701,0.3608,98812.0,98811.0,0.050548]
[1732254324209,0.050548,98811.0,98810.0,0.02137345]
[1732254324403,0.050548,98811.0,98809.0,0.0304]
[1732254324610,4e-05,98811.0,98810.0,0.06895484]
[1732254325813,4e-05,98811.0,98810.0,0.08963848]
[1732254326207,0.01564823,98825.0,98810.0,0.03908948]
[1732254326411,0.3608,98828.0,98812.0,0.050547]
[1732254326615,0.050541,98825.0,98824.0,0.05054]
[1732254326817,0.050541,98825.0,98824.0,0.06894584]
[1732254328409,0.3608,98828.0,98827.0,0.05054]
[1732254328713,0.3608,98828.0,98827.0,0.06898584]
[1732254329109,0.3608,98828.0,98827.0,0.05058]
[1732254330325,0.411339,98828.0,98827.0,0.05058]
[1732254332616,0.411339,98828.0,98827.0,4e-05]
[1732254333918,0.3608,98836.0,98835.0,0.050536]
[1732254334217,0.3608,98836.0,98835.0,0.050576]
[1732254334417,0.3608,98836.0,98835.0,0.06898184]
[1732254336922,0.3608,98836.0,98835.0,0.050576]
[1732254340720,0.3608,98836.0,98835.0,0.06898184]
[1732254341424,0.3608,98836.0,98835.0,0.050576]
[1732254342020,0.3608,98847.0,98846.0,0.05053]
[1732254342414,0.3608,98847.0,98846.0,0.05057]
[1732254343622,0.3608,98847.0,98846.0,0.07180757]
[1732254345724,0.3608,98847.0,98846.0,0.09021341]
[1732254345915,0.30397665,98847.0,98846.0,0.09021341]
[1732254347021,0.35450665,98847.0,98846.0,0.01844584]
[1732254347816,0.38780665,98847.0,98846.0,0.01844584]
[1732254348224,0.38780665,98847.0,98846.0,4e-05]
[1732254349323,0.45000665,98847.0,98846.0,4e-05]
[1732254350238,0.4707339,98847.0,98846.0,4e-05]
[1732254352635,0.52755725,98847.0,98846.0,4e-05]
[1732254360239,0.3608,98847.0,98846.0,0.05057]
[1732254361543,0.41133,98847.0,98846.0,0.05057]
[1732254361746,0.41133,98847.0,98846.0,4e-05]
[1732254363142,0.77213,98847.0,98846.0,4e-05]
[1732254363348,0.80353,98847.0,98846.0,4e-05]
[1732254364156,0.050535,98837.0,98836.0,0.0024]
[1732254364451,0.45192,98837.0,98826.0,0.0024]
[1732254364635,0.45192,98837.0,98821.0,0.0024]
[1732254364636,0.050542,98822.0,98821.0,0.0024]
[1732254364841,0.19392038,98836.0,98822.0,0.050542]
[1732254365042,0.19392038,98836.0,98817.0,0.0094]
[1732254365043,0.18922038,98836.0,98817.0,0.0094]
[1732254365346,0.23975538,98836.0,98835.0,4e-05]
[1732254365548,0.203215,98836.0,98835.0,4e-05]
[1732254366349,0.22456399,98836.0,98835.0,4e-05]
[1732254366543,0.16296399,98836.0,98835.0,4e-05]
[1732254367541,0.07188399,98836.0,98835.0,4e-05]
[1732254368153,0.050535,98836.0,98835.0,4e-05]
[1732254368342,0.3608,98837.0,98836.0,0.050535]
[1732254368647,0.38158927,98837.0,98836.0,0.050575]
[1732254370946,0.43212427,98837.0,98836.0,0.050575]
[1732254371752,0.43212427,98837.0,98836.0,0.07196201]
[1732254373753,0.411335,98837.0,98836.0,0.07196201]
[1732254375255,0.3608,98837.0,98836.0,0.07196201]
[1732254375555,0.411335,98837.0,98836.0,0.07196201]
[1732254375953,0.3608,98837.0,98836.0,0.07196201]
[1732254377254,0.0047,98850.0,98836.0,0.07196201]
[1732254377443,0.05204719,98848.0,98847.0,0.05053]
[1732254377763,0.05204719,98848.0,98847.0,0.07195701]
[1732254383755,0.05204719,98848.0,98847.0,0.02142701]
[1732254383956,0.05204719,98848.0,98847.0,0.07195701]
[1732254390957,0.05204719,98848.0,98847.0,0.02142701]
[1732254391157,0.41284719,98848.0,98847.0,0.02142701]
[1732254392152,0.50380719,98848.0,98847.0,0.07195701]
[1732254392356,0.50380719,98848.0,98847.0,0.02142701]
[1732254392556,0.50380719,98848.0,98847.0,0.02081216]
[1732254394466,0.41284719,98848.0,98847.0,0.02081216]
[1732254396264,0.41284719,98848.0,98847.0,0.07134216]
[1732254401268,0.41284719,98848.0,98847.0,0.02081216]
[1732254403966,0.050534,98838.0,98837.0,0.0024]
[1732254404162,0.050534,98838.0,98827.0,0.0027]
[1732254404163,0.050539,98828.0,98827.0,0.0024]
[1732254404358,0.050542,98823.0,98819.0,0.050544]
[1732254404566,0.050543,98821.0,98819.0,0.050544]
[1732254404766,4e-05,98820.0,98819.0,0.050544]
[1732254404984,0.050583,98820.0,98819.0,0.050544]
[1732254405170,4e-05,98820.0,98816.0,0.00151791]
[1732254405570,4e-05,98817.0,98816.0,0.00151791]
[1732254406082,0.050585,98817.0,98816.0,0.00151791]
[1732254406369,0.411385,98817.0,98816.0,0.00151791]
[1732254408176,0.050547,98813.0,98812.0,0.0311]
[1732254408564,4e-05,98813.0,98804.0,0.0024]
[1732254408869,0.050552,98804.0,98802.0,0.0202114]
[1732254409271,4e-05,98803.0,98801.0,0.0606]
[1732254409571,4e-05,98802.0,98801.0,0.0606]
[1732254410570,0.050593,98802.0,98801.0,0.0606]
[1732254410774,0.050593,98802.0,98801.0,0.0303]
[1732254411069,0.050593,98802.0,98793.0,0.0024]
[1732254411070,0.502353,98802.0,98793.0,0.0024]
[1732254411372,4e-05,98801.0,98793.0,0.0024]
[1732254417476,4e-05,98801.0,98794.0,0.050557]
[1732254419879,4e-05,98801.0,98800.0,0.4608]
[1732254420083,0.3608,98833.0,98815.0,0.050546]
[1732254420287,0.0047,98829.0,98819.0,0.050544]
[1732254420675,0.0047,98829.0,98819.0,0.354144]
[1732254420876,0.0047,98829.0,98819.0,0.37461592]
[1732254423482,0.0047,98829.0,98819.0,0.73541592]
[1732254423683,0.0047,98837.0,98835.0,0.050536]
[1732254423885,0.050532,98842.0,98839.0,0.050534]
[1732254424288,0.11203564,98847.0,98841.0,8e-05]
[1732254424676,0.07168564,98847.0,98846.0,8e-05]
[1732254424984,0.00151819,98848.0,98847.0,0.05053]
[1732254425380,0.05204719,98848.0,98847.0,0.05061]
[1732254428178,0.05204719,98848.0,98847.0,8e-05]
[1732254433292,0.35552719,98848.0,98847.0,8e-05]
[1732254437295,0.00151819,98848.0,98847.0,8e-05]
[1732254441600,0.05204719,98848.0,98847.0,8e-05]
[1732254444303,0.14292719,98848.0,98847.0,8e-05]
[1732254446003,0.141409,98848.0,98847.0,8e-05]
[1732254448603,0.050532,98842.0,98841.0,8e-05]
[1732254448797,0.444889,98848.0,98832.0,0.0094]
[1732254448798,0.45232,98848.0,98832.0,0.0094]
[1732254448994,4e-05,98842.0,98835.0,0.050535]
[1732254449205,0.050572,98842.0,98835.0,0.050535]
[1732254449401,0.3608,98836.0,98835.0,0.050535]
[1732254449602,0.050533,98841.0,98836.0,0.050535]
[1732254449806,0.3608,98837.0,98836.0,0.050535]
[1732254450099,0.050535,98836.0,98830.0,0.050538]
[1732254450307,0.411335,98836.0,98833.0,0.050537]
[1732254450515,0.411335,98836.0,98835.0,0.050536]
[1732254451705,0.43261853,98836.0,98835.0,0.050536]
[1732254452311,0.38208353,98836.0,98835.0,0.050536]
[1732254453401,0.43261853,98836.0,98835.0,0.050536]
[1732254453602,0.050536,98834.0,98823.0,0.0024]
[1732254453804,0.3608,98826.0,98825.0,0.050541]
[1732254454806,0.08375006,98834.0,98825.0,0.050541]
[1732254455017,0.0047,98839.0,98838.0,0.050534]
[1732254455198,0.02097764,98842.0,98841.0,0.050533]
[1732254455600,0.02097764,98842.0,98841.0,0.050573]
[1732254455805,4e-05,98842.0,98841.0,0.050573]
[1732254456901,0.36084,98842.0,98841.0,0.050573]
[1732254471517,0.411372,98842.0,98841.0,0.050573]
[1732254472814,4e-05,98842.0,98841.0,0.050573]
[1732254473319,0.36084,98842.0,98841.0,4e-05]
[1732254473512,0.411372,98842.0,98841.0,4e-05]
[1732254474116,0.502212,98842.0,98841.0,4e-05]
[1732254475222,0.502172,98842.0,98841.0,4e-05]
[1732254478414,0.502172,98842.0,98828.0,0.0024]
[1732254478415,0.050539,98829.0,98828.0,0.0024]
[1732254478718,0.050544,98819.0,98818.0,0.0024]
[1732254479018,0.050545,98816.0,98808.0,0.0024]
[1732254479218,0.502185,98816.0,98808.0,0.0024]
[1732254479519,0.50226501,98816.0,98808.0,0.0024]
[1732254480215,0.50226501,98816.0,98811.0,0.050548]
[1732254480516,0.50226501,98816.0,98815.0,0.05206395]
[1732254480517,0.38136694,98816.0,98815.0,0.05206395]
[1732254483419,0.43191194,98816.0,98815.0,0.00151795]
[1732254488626,0.73551194,98816.0,98815.0,0.00151795]
[1732254491731,0.37471194,98816.0,98815.0,0.00151795]
[1732254491921,0.02056694,98816.0,98815.0,0.00151795]
[1732254492127,0.02056694,98816.0,98815.0,0.05206395]
[1732254495432,0.02056694,98816.0,98815.0,0.050546]
[1732254496435,0.02020923,98830.0,98812.0,0.3608]
[1732254496436,0.45164,98824.0,98812.0,0.3608]
[1732254496734,0.45164,98824.0,98823.0,0.050582]
[1732254497130,0.3608,98824.0,98823.0,0.050582]
[1732254498844,0.43273987,98832.0,98831.0,0.050538]
[1732254499737,0.43273987,98832.0,98831.0,0.050578]
[1732254500649,0.38220287,98832.0,98831.0,0.050578]
[1732254502542,0.3608,98832.0,98831.0,0.050578]
[1732254509937,0.07180384,98836.0,98835.0,0.050536]
[1732254510142,0.050535,98836.0,98835.0,0.050536]
[1732254510340,0.050535,98836.0,98835.0,0.050576]
[1732254512238,0.11226605,98841.0,98835.0,4e-05]
[1732254512438,0.050534,98840.0,98839.0,0.050533]
[1732254512635,0.050534,98840.0,98835.0,4e-05]
[1732254512636,0.050532,98845.0,98844.0,0.050531]
[1732254514538,0.02125416,98846.0,98835.0,0.0024]
[1732254514739,0.050533,98842.0,98841.0,0.050532]
[1732254515045,0.411333,98842.0,98841.0,0.050532]
[1732254517555,0.05053,98846.0,98843.0,0.050532]
[1732254517850,0.05053,98846.0,98835.0,0.0024]
[1732254517851,0.05053,98846.0,98844.0,0.050531]
[1732254518551,0.0908,98848.0,98844.0,0.050531]
[1732254518853,0.050531,98845.0,98844.0,0.050531]
[1732254521847,0.411331,98845.0,98844.0,0.050531]
[1732254522350,0.3608,98845.0,98836.0,0.0024]
[1732254522551,0.050532,98842.0,98840.0,0.050533]
[1732254522751,0.050532,98842.0,98832.0,0.0301]
[1732254522945,0.050532,98842.0,98841.0,0.050533]
[1732254526954,0.050537,98836.0,98835.0,0.050536]
[1732254527451,4e-05,98836.0,98835.0,0.050536]
[1732254528754,0.36084,98836.0,98835.0,0.050536]
[1732254529559,4e-05,98836.0,98835.0,0.050536]
[1732254530356,0.0214326,98836.0,98835.0,0.050536]
[1732254530864,0.0719676,98836.0,98835.0,0.050536]
[1732254531756,0.4327676,98836.0,98835.0,0.050536]
[1732254532950,0.0214326,98836.0,98835.0,0.050536]
[1732254534853,0.3822326,98836.0,98835.0,0.050536]
[1732254541561,0.4327676,98836.0,98835.0,0.050536]
[1732254542961,0.3822326,98836.0,98835.0,0.050536]
[1732254544855,0.0214326,98836.0,98825.0,0.0024]
[1732254545057,0.08374624,98835.0,98834.0,0.050536]
[1732254545264,0.0213926,98836.0,98834.0,0.050536]
[1732254545467,0.050535,98837.0,98834.0,0.050536]
[1732254545856,0.050535,98836.0,98834.0,0.050536]
[1732254546359,0.02100117,98837.0,98836.0,0.050535]
[1732254546561,0.050535,98837.0,98836.0,0.050535]
[1732254546762,0.050535,98837.0,98836.0,4e-05]
[1732254549771,0.411335,98837.0,98836.0,4e-05]
[1732254552671,0.411295,98837.0,98836.0,4e-05]
[1732254552867,0.411295,98837.0,98828.0,0.0024]
[1732254553074,0.411295,98837.0,98823.0,0.00236]
[1732254553075,0.050541,98824.0,98823.0,0.00236]
[1732254553275,0.141301,98824.0,98823.0,0.00236]
[1732254556069,0.16278027,98824.0,98823.0,0.00236]
[1732254559673,0.16274027,98824.0,98823.0,0.00236]
[1732254563369,0.02147927,98824.0,98823.0,0.052902]
[1732254563572,0.050539,98828.0,98824.0,0.050541]
[1732254563773,0.050541,98826.0,98824.0,0.050541]
[1732254564180,0.19596455,98833.0,98823.0,0.00236]
[1732254564476,0.050539,98828.0,98827.0,4e-05]
[1732254567289,0.0707488,98828.0,98827.0,4e-05]
[1732254574186,0.1617888,98828.0,98827.0,4e-05]
[1732254574885,0.0707488,98828.0,98827.0,4e-05]
[1732254575086,0.00068,98836.0,98835.0,0.050536]
[1732254575292,0.00151807,98848.0,98830.0,0.0329]
[1732254575293,0.08374624,98845.0,98830.0,0.0329]
[1732254575484,0.08374624,98840.0,98835.0,4e-05]
[1732254575681,0.08374624,98845.0,98844.0,4e-05]
[1732254575990,0.02222696,98848.0,98844.0,4e-05]
[1732254576185,0.02222696,98848.0,98847.0,0.05053]
[1732254576391,0.02222696,98848.0,98847.0,0.05057]
[1732254577183,0.04243591,98848.0,98847.0,0.05057]
[1732254577380,0.02222696,98848.0,98847.0,0.05057]
[1732254583195,0.07275596,98848.0,98847.0,0.05057]
[1732254595204,0.43355596,98848.0,98847.0,0.05057]
[1732254597596,0.07275596,98848.0,98847.0,0.05057]
[1732254597788,0.02222696,98848.0,98847.0,0.05057]
[1732254598104,0.38302696,98848.0,98847.0,0.05057]
[1732254602402,0.02222696,98848.0,98847.0,0.05057]
[1732254607499,0.07275596,98848.0,98847.0,0.05057]
[1732254608609,0.43355596,98848.0,98847.0,4e-05]
[1732254613112,0.73703596,98848.0,98847.0,4e-05]
[1732254614106,0.43355596,98848.0,98847.0,4e-05]
[1732254618109,0.050534,98838.0,98836.0,0.052315]
[1732254618300,0.3608,98837.0,98836.0,0.052315]
[1732254618509,0.361,98837.0,98836.0,0.052315]
[1732254620704,0.411535,98837.0,98836.0,0.052315]
[1732254623221,0.050735,98837.0,98836.0,0.052315]
[1732254624016,0.0002,98837.0,98836.0,0.052315]
[1732254624411,0.0002,98837.0,98836.0,0.716635]
[1732254624611,0.05674707,98848.0,98847.0,0.05053]
[1732254624806,0.05204707,98848.0,98847.0,0.05053]
[1732254625015,0.00151807,98848.0,98847.0,0.05057]
[1732254627912,0.05204707,98848.0,98847.0,0.05057]
[1732254631527,0.00151807,98848.0,98847.0,0.05057]
[1732254632621,0.05204707,98848.0,98847.0,0.05057]
[1732254639728,0.00151807,98848.0,98847.0,0.05057]
[1732254640826,0.05204707,98848.0,98847.0,0.05057]
[1732254647234,0.00151807,98848.0,98847.0,0.05057]
[1732254648928,0.05204707,98848.0,98847.0,0.05057]
[1732254657836,0.00151807,98848.0,98847.0,0.05057]
[1732254666749,0.00151807,98848.0,98847.0,4e-05]
[1732254666948,0.00151807,98848.0,98847.0,0.05057]
[1732254667344,0.05204707,98848.0,98847.0,0.05057]
[1732254668445,0.00151807,98848.0,98847.0,0.05057]
[1732254669254,0.081429,98850.0,98847.0,0.05057]
[1732254669649,0.081429,98850.0,98849.0,4e-05]
[1732254675860,0.442229,98850.0,98849.0,4e-05]
[1732254679145,0.442229,98850.0,98849.0,0.050569]
[1732254680760,0.081429,98850.0,98849.0,0.050569]
[1732254680956,0.442229,98850.0,98849.0,0.050569]
[1732254692963,0.442229,98850.0,98849.0,4e-05]
[1732254694058,0.050537,98833.0,98832.0,0.0101]
[1732254694260,0.050539,98829.0,98828.0,0.00151769]
[1732254694663,0.050539,98829.0,98828.0,0.05205669]
[1732254694866,0.3924,98832.0,98831.0,0.050538]
[1732254695262,0.3924,98832.0,98831.0,0.050578]
[1732254696470,0.442937,98832.0,98831.0,0.050578]
[1732254700172,4e-05,98833.0,98832.0,0.050537]
[1732254700571,4e-05,98833.0,98832.0,0.082177]
[1732254704373,0.050577,98833.0,98832.0,0.050577]
[1732254708871,4e-05,98833.0,98832.0,0.050577]
[1732254717795,0.050577,98833.0,98832.0,0.050577]
[1732254720694,0.050577,98833.0,98832.0,4e-05]
[1732254720893,0.050539,98829.0,98828.0,0.00151769]
[1732254721097,0.171277,98833.0,98814.0,0.0101]
[1732254721298,0.050546,98815.0,98814.0,0.050546]
[1732254721495,0.050546,98815.0,98810.0,0.050548]
[1732254721496,0.050547,98813.0,98810.0,0.050548]
[1732254721689,0.0314,98812.0,98811.0,0.050548]
[1732254721895,7.999e-05,98815.0,98814.0,0.050546]
[1732254723296,0.0125,98825.0,98814.0,0.354146]
[1732254723497,0.0125,98830.0,98829.0,0.050539]
[1732254723697,0.050537,98833.0,98831.0,0.050538]
[1732254724193,0.050537,98833.0,98831.0,0.050578]
[1732254724405,0.082337,98832.0,98831.0,0.050578]
[1732254726495,0.423835,98840.0,98839.0,0.050534]
[1732254726701,0.411335,98840.0,98839.0,0.050534]
[1732254726995,0.411335,98840.0,98839.0,0.050574]
[1732254727196,0.43178966,98840.0,98839.0,0.050574]
[1732254728902,0.38125466,98840.0,98839.0,0.050574]
[1732254730100,0.050531,98845.0,98844.0,0.050531]
[1732254730502,0.050531,98845.0,98844.0,0.050571]
[1732254731196,0.050531,98845.0,98844.0,4e-05]
[1732254732196,0.050531,98845.0,98844.0,0.050571]
[1732254732596,0.050531,98845.0,98844.0,4e-05]
[1732254740903,0.411331,98845.0,98844.0,4e-05]
[1732254744398,0.411331,98845.0,98831.0,4e-05]
[1732254744399,0.050537,98832.0,98831.0,4e-05]
[1732254744705,0.41137701,98832.0,98831.0,4e-05]
[1732254745205,0.47397701,98832.0,98831.0,4e-05]
[1732254749705,0.49496513,98832.0,98831.0,4e-05]
[1732254752507,0.44442813,98832.0,98811.0,0.0024]
[1732254752717,0.050545,98817.0,98815.0,0.050546]
[1732254754805,0.050545,98816.0,98806.0,0.05055]
[1732254755018,0.050545,98816.0,98805.0,0.38245957]
[1732254755214,0.050547,98814.0,98810.0,0.050548]
[1732254755405,0.050547,98814.0,98805.0,0.38245957]
[1732254755605,0.08374624,98815.0,98805.0,0.38193957]
[1732254755909,0.050549,98810.0,98809.0,0.050549]
[1732254756722,0.050546,98815.0,98811.0,0.050548]
[1732254756909,0.38142378,98819.0,98811.0,0.050548]
[1732254757107,0.050547,98814.0,98811.0,0.050548]
[1732254757314,0.38142378,98819.0,98811.0,0.050548]
[1732254757723,0.050547,98813.0,98811.0,0.050548]
[1732254757907,0.38142378,98819.0,98805.0,0.36132]
[1732254758106,0.050547,98814.0,98805.0,0.3608]
[1732254758308,0.050548,98812.0,98805.0,0.3608]
[1732254758509,0.050548,98812.0,98811.0,0.050548]
[1732254758920,0.08374624,98815.0,98812.0,0.050547]
[1732254759219,0.050546,98815.0,98814.0,4e-05]
[1732254760015,0.02062378,98819.0,98818.0,0.050544]
[1732254760212,0.0024,98828.0,98818.0,0.050544]
[1732254760518,0.17378624,98830.0,98829.0,0.050539]
[1732254760714,0.09004,98830.0,98829.0,0.050539]
[1732254761011,0.09004,98830.0,98829.0,0.050579]
[1732254761212,0.16117871,98830.0,98829.0,4e-05]
[1732254761412,0.52197871,98830.0,98829.0,4e-05]
[1732254761811,0.16117871,98830.0,98829.0,4e-05]
[1732254762511,0.52197871,98830.0,98829.0,4e-05]
[1732254763215,0.16117871,98830.0,98829.0,4e-05]
[1732254763719,0.52197871,98830.0,98829.0,4e-05]
[1732254764809,0.52197871,98830.0,98829.0,0.050579]
[1732254766616,0.47144071,98830.0,98829.0,0.050579]
[1732254767716,0.02060071,98830.0,98829.0,0.050579]
[1732254767906,0.00151832,98835.0,98829.0,0.050579]
[1732254768112,0.00151832,98835.0,98834.0,0.050536]
[1732254768316,0.00151832,98835.0,98834.0,0.050576]
[1732254770417,0.05205432,98835.0,98834.0,0.050576]
[1732254770818,0.05205432,98835.0,98834.0,4e-05]
[1732254771018,0.05205432,98835.0,98834.0,0.050576]
[1732254772327,0.00151832,98835.0,98834.0,0.050576]
[1732254772526,0.05205432,98835.0,98834.0,0.050576]
[1732254778429,0.05205432,98835.0,98834.0,4e-05]
[1732254780029,0.05205432,98835.0,98804.0,0.0322]
[1732254780030,0.36231832,98835.0,98804.0,0.0322]
[1732254780241,0.08374624,98824.0,98810.0,0.08374624]
[1732254780429,0.00012,98815.0,98814.0,0.050546]
[1732254789434,0.00012,98815.0,98814.0,0.354146]
[1732254789832,0.00012,98815.0,98814.0,0.417046]
[1732254792238,0.00012,98815.0,98814.0,0.113446]
[1732254797142,0.00012,98815.0,98814.0,0.417046]
[1732254798041,0.00012,98815.0,98814.0,0.050546]
[1732254798244,0.00012,98815.0,98814.0,0.140386]
[1732254799336,0.00012,98815.0,98814.0,0.050546]
[1732254800048,0.00012,98815.0,98814.0,0.354146]
[1732254800250,0.0024,98828.0,98827.0,0.05054]
[1732254800458,0.050535,98837.0,98827.0,0.05054]
[1732254800459,0.050535,98837.0,98834.0,0.050536]
[1732254800754,0.05205432,98835.0,98834.0,0.050536]
[1732254807241,0.00151832,98835.0,98834.0,0.050536]
[1732254816660,0.05205432,98835.0,98834.0,0.050536]
[1732254820055,0.00151832,98835.0,98834.0,0.050536]
[1732254821459,0.05205432,98835.0,98834.0,0.050536]
[1732254821857,0.00151832,98835.0,98834.0,0.050536]
[1732254822760,0.05205432,98835.0,98834.0,0.050536]
[1732254823355,0.00151832,98835.0,98827.0,0.36136]
[1732254823669,0.050537,98833.0,98832.0,0.050536]
[1732254826356,0.00151832,98835.0,98834.0,0.050536]
[1732254826562,0.05205432,98835.0,98834.0,0.050536]
[1732254826764,0.05205432,98835.0,98834.0,0.050576]
[1732254829860,0.05205432,98835.0,98834.0,4e-05]
[1732254833377,0.05421411,98835.0,98834.0,4e-05]
[1732254836471,0.41501411,98835.0,98834.0,4e-05]
[1732254837578,0.05421411,98835.0,98834.0,4e-05]
[1732254854598,0.05421411,98835.0,98834.0,0.050576]
[1732254854799,0.00367811,98835.0,98834.0,0.050576]
[1732254856792,0.00215979,98835.0,98834.0,0.050576]
[1732254857805,0.05269579,98835.0,98834.0,0.050576]
[1732254870409,0.05269579,98835.0,98834.0,4e-05]
[1732254871013,0.00215979,98835.0,98834.0,4e-05]
[1732254872010,0.00215979,98835.0,98834.0,0.050576]
[1732254877914,0.05269579,98835.0,98834.0,0.050576]
[1732254885018,0.00215979,98835.0,98834.0,0.050576]
[1732254887017,0.00215979,98835.0,98834.0,0.050536]
[1732254888925,0.0028136,98835.0,98834.0,0.050536]
[1732254891428,0.0533496,98835.0,98834.0,0.050536]
[1732254900430,0.050537,98832.0,98831.0,0.00052]
[1732254900633,0.050537,98832.0,98815.0,0.411346]
[1732254900634,0.050543,98821.0,98820.0,0.050543]
[1732254900833,0.0533566,98821.0,98820.0,0.050543]
[1732254902135,0.0028136,98821.0,98820.0,0.050543]
[1732254903334,0.0533566,98821.0,98820.0,0.050543]
[1732254903836,0.0028136,98821.0,98820.0,0.050543]
[1732254904941,0.0533566,98821.0,98820.0,0.050543]
[1732254905126,0.0028136,98821.0,98820.0,0.050543]
[1732254907730,0.0533566,98821.0,98820.0,0.050543]
[1732254916743,0.0028136,98821.0,98820.0,0.050543]
[1732254918040,0.0533566,98821.0,98820.0,0.050543]
[1732254924544,0.050544,98818.0,98817.0,0.36136]
[1732254924744,0.050544,98818.0,98817.0,0.411345]
[1732254924939,0.0533976,98818.0,98817.0,0.050545]
[1732254925145,0.050546,98815.0,98814.0,0.00151789]
[1732254925548,0.050586,98815.0,98814.0,0.00151789]
[1732254925935,0.0533996,98815.0,98814.0,0.05206389]
[1732254926744,0.0533996,98815.0,98814.0,0.00151789]
[1732254927852,0.0533996,98815.0,98814.0,0.05206389]
[1732254929942,0.07471162,98815.0,98814.0,0.05206389]
[1732254932855,0.02416562,98815.0,98814.0,0.05206389]
[1732254933351,0.07471162,98815.0,98814.0,0.05206389]
[1732254939948,0.07471162,98815.0,98814.0,0.00151789]
[1732254941650,0.07471162,98815.0,98814.0,0.05206389]
[1732254952974,0.07471162,98815.0,98814.0,0.00151789]